Workbook

Sheet SM - BO Template
C2: Radio Broadcast Order | Z2: Spot
O3: Market | R3: Order#: | Z3: Bonus
C4: =VLOOKUP(O4,$Z$21:$AF$33,2,FALSE) -> 101.5 CKMO-FM | G4: - A Division of MBC | O4: Orangeville | R4: Date: | S4: =TODAY() -> 2016-11-08 | W4: Co-op Script | Z4: News Tag | AA4: SPOT
C5: =VLOOKUP(O4,$Z$21:$AF$33,3,FALSE) -> 22 Mill St., Unit 118 | Z5: News Spnsr | AA5: PKG.
C6: =VLOOKUP(O4,Z21:AC33,4,FALSE) -> Orangeville, Ontario | M6: Tel: | N6: =VLOOKUP(O4,Z21:AE33,6,FALSE) -> 226-790-myfm (6936) | Q6: Revision | S6: NO | Z6: Sports Tag | AA6: BONUS
C7: =VLOOKUP(O4,$Z$21:$AF$33,5,FALSE) -> L9W 2M3 | M7: Fax: | N7: =VLOOKUP(O4,Z21:AF33,7,FALSE) -> 226-779-7927 | R7: =IF(S6="YES","ENTER ORIGINAL ORDER # ABOVE"," ") ->  | Z7: Sprts Spnsr
Z8: Wther Tag | AK8: M | AL8: T | AM8: W | AN8: T | AO8: F | AP8: S | AQ8: S | AR8: Spots | AS8: Bonus
B9: Client: | M9: Contact: | Q9: Start Date: | Z9: Wther Spnsr | AB9: :10 | AC9: Level 1 | AD9: 1 | AE9: 6 SPOTS/WEEK | AG9: 6 SPOTS/WEEK - BONUS | AJ9: 11 | AK9: 1 | AL9: 1 | AM9: 1 | AN9: 1 | AO9: 1 | AQ9: 1 | AR9: 6 | AS9: 6
B10: Address: | M10: Phone: | Q10: =IF(StartDate<S4,"INVALID - CHANGE TO FUTURE DATE"," ") -> INVALID - CHANGE TO FUTURE DATE | Z10: Info Tag | AB10: :15 | AC10: Level 2 | AD10: 2 | AE10: 12 SPOTS/WEEK | AG10: 7 SPOTS/WEEK - BONUS | AJ10: 12 | AK10: 1 | AL10: 1 | AM10: 1 | AN10: 1 | AO10: 1 | AP10: 1 | AQ10: 1 | AR10: 12 | AS10: 7
M11: Fax: | Q11: Expiry Date: | Z11: Info Spnsr | AB11: :30 | AC11: Level 3 | AD11: 3 | AE11: 18 SPOTS/WEEK | AG11: 8 SPOTS/WEEK - BONUS | AJ11: 13 | AK11: 1 | AL11: 1 | AM11: 1 | AN11: 1 | AO11: 1 | AP11: 1 | AQ11: 2 | AR11: 18 | AS11: 8
M12: Email: | Z12: Bonus PSA | AB12: :45
M13: Inv. Email: | Q13: Acct. Exec: | Z13: Coupon | AB13: :60 | AC13: =VLOOKUP($S$16,$AC$9:$AJ$11,8) -> 11
B14: Line of Business: | Z14: Other | AB14: 01:30:00
B15: New Client | C15: NO | D15: Detailed Billing | M15: NO | N15: =IF(M16="YES", "PLEASE INSERT CO-OP SCRIPT ON THE RIGHT"," ") ->  | Q15: Campaign: | AB15: 02:00:00
B16: Prepayment Collected | C16: NO | D16: Co-Op | M16: NO | Q16: Smart Marketing | S16: Level 1
Z17: YES
B18: Instructions | C18: # Wks | D18: M | E18: T | F18: W | G18: T | H18: F | I18: S | J18: S | L18: Total | M18: Times | N18: Length | O18: Desc. | P18: Occ. | Q18: Spot Rate | R18: Pkg. Price | S18: Total Amount | Z18: NO | AK18: 52
AG19: Weekly | AJ19: Annual
B20: =VLOOKUP($S$16,$AC$9:$AK$11,3) -> 6 SPOTS/WEEK | C20: 52 | D20: =VLOOKUP($S$16,$AC$9:$AM$11,2) -> 1 | E20: =VLOOKUP($S$16,$AC$9:$AM$11,2) -> 1 | F20: 1 | G20: =VLOOKUP($S$16,$AC$9:$AM$11,2) -> 1 | H20: =VLOOKUP($S$16,$AC$9:$AM$11,2) -> 1 | I20: 1 | K20: =VLOOKUP($S$16,$AC$9:$AS$11,16) -> 6 | L20: =SUM(D20:J20) -> 6 | M20: 6A-8P | N20: :30 | O20: Spot | P20: =C20*SUM(D20:J20) -> 312 | Q20: =$S$24/$P$20 -> 24.83333333 | S20: =P20*Q20 -> 7748 | AB20: Street | AC20: Town | AD20: Postal Code | AE20: Tel. | AF20: Fax | AG20: Level 1 | AH20: Level 2 | AI20: Level 3 | AJ20: Level 1 | AK20: Level 2 | AL20: Level 3
D21: =IF(L20<>K20,"INCORRECT # OF SPOTS"," ") ->  | Y21: Alliston | Z21: Alliston | AA21: 92.1 CIMA-FM | AB21: 63 Tupper St. W., Suite 301 | AC21: Alliston, Ontario | AD21: L9R 1E4 | AE21: 705-530-6936 | AF21: 705-530-1921 | AG21: 99 | AH21: 159 | AI21: 199 | AJ21: =AG21*$AK$18 -> 5148 | AK21: =AH21*$AK$18 -> 8268 | AL21: =AI21*$AK$18 -> 10348
B22: =VLOOKUP($S$16,$AC$9:$AK$11,5) -> 6 SPOTS/WEEK - BONUS | C22: 52 | D22: =VLOOKUP($S$16,$AC$9:$AQ$11,9) -> 1 | E22: =VLOOKUP($S$16,$AC$9:$AQ$11,10) -> 1 | F22: =VLOOKUP($S$16,$AC$9:$AQ$11,11) -> 1 | G22: =VLOOKUP($S$16,$AC$9:$AQ$11,12) -> 1 | H22: =VLOOKUP($S$16,$AC$9:$AQ$11,13) -> 1 | I22: =VLOOKUP($S$16,$AC$9:$AQ$11,14) -> 0 | J22: =VLOOKUP($S$16,$AC$9:$AQ$11,15) -> 1 | K22: =VLOOKUP($S$16,$AC$9:$AS$11,17) -> 6 | L22: =SUM(D22:J22) -> 6 | M22: BTA | N22: :30 | O22: Bonus | P22: =C22*SUM(D22:J22) -> 312 | Y22: Arnprior | Z22: Arnprior | AA22: 107.7 CHMY-FM-1 | AB22: 160 William St. W, Suite 52 | AC22: Arnprior, Ontario | AD22: K7S 3W4 | AE22: 613-623-7772 | AF22: 613-623-4508 | AG22: 99 | AH22: 169 | AI22: 229 | AJ22: 5148 | AK22: 8788 | AL22: 11908
D23: =IF(L22<>K22,"INCORRECT # OF SPOTS"," ") ->  | Y23: Brighton | Z23: Brighton | AA23: 100.9 CIYM-FM | AB23: 6 Oliphant St., Unit 5, Box 1522 | AC23: Brighton, Ontario | AD23: K0K 1H0 | AE23: 613-475-6936 | AF23: 613-475-9026 | AG23: 89 | AH23: 139 | AI23: 189 | AJ23: 4628 | AK23: 7228 | AL23: 9828
P24: Total | R24: Sub-Total | S24: =VLOOKUP($O$4,$Z$21:$AL$33,$AC$13) -> 7748 | Y24: Exeter | Z24: Exeter | AA24: 90.5 CKXM-FM | AB24: 145 Thames Rd. W., Unit 6 | AC24: Exeter, Ontario | AD24: N0M 1S3 | AE24: 519-235-3000 | AF24: 519-235-6262 | AG24: 99 | AH24: 169 | AI24: 229 | AJ24: 5148 | AK24: 8788 | AL24: 11908
P25: =P20+SUM(P22:P23) -> 624 | Q25: 0.13 | R25: HST | S25: =S24*Q25 -> 1007.24 | Y25: Gananoque | Z25: Gananoque | AA25: 99.9 CJGM-FM | AB25: 110 Kate St. | AC25: Gananoque, Ontario | AD25: K7G 2M7 | AE25: 613-382-myfm (6936) | AF25: 613-382-8301 | AG25: 89 | AH25: 139 | AI25: 189 | AJ25: 4628 | AK25: 7228 | AL25: 9828
B26: Details of Billing and Other Instructions | R26: Total | S26: =SUM(S24:S25) -> 8755.24 | Y26: Kincardine | Z26: Kincardine | AA26: 95.5 CIYN-FM | AB26: 756 Queen St. | AC26: Kincardine, Ontario | AD26: N2Z 2Y2 | AE26: 519-396-7770 | AF26: 519-397-7771 | AG26: 119 | AH26: 169 | AI26: 229 | AJ26: 6188 | AK26: 8788 | AL26: 11908
D27: =S24/12 -> 645.6666667 | Y27: Napanee | Z27: Napanee | AA27: 88.7 CKYM-FM | AB27: 20 Market Square | AC27: Napanee, Ontario | AD27: K7R 1J3 | AE27: 613-354-4554 | AF27: 613-354-3661 | AG27: 99 | AH27: 169 | AI27: 229 | AJ27: 5148 | AK27: 8788 | AL27: 11908
B28: Invoice Monthly: | F28: =P28*4 -> 596 | N28: =P28*5 -> 745 | P28: =S24/52 -> 149 | Y28: Norfolk County | Z28: Norfolk County | AA28: 98.9 CHCD-FM | AB28: 55 Park Road, Box 98 | AC28: Simcoe, Ontario | AD28: N3Y 4K8 | AE28: 519-426-7700 | AF28: 519-426-8574 | AG28: 159 | AH28: 199 | AI28: 279 | AJ28: 8268 | AK28: 10348 | AL28: 14508
Y29: Orangeville | Z29: Orangeville | AA29: 101.5 CKMO-FM | AB29: 22 Mill St., Unit 118 | AC29: Orangeville, Ontario | AD29: L9W 2M3 | AE29: 226-790-myfm (6936) | AF29: 226-779-7927 | AG29: 149 | AH29: 199 | AI29: 249 | AJ29: 7748 | AK29: 10348 | AL29: 12948
Y30: Pembroke | Z30: Pembroke | AA30: 104.9 CIMY-FM | AB30: 84 Isabella St. | AC30: Pembroke, Ontario | AD30: K8A 5S5 | AE30: 613-735-myfm (6936) | AF30: 613-732-4054 | AG30: 139 | AH30: 189 | AI30: 239 | AJ30: 7228 | AK30: 9828 | AL30: 12428
B31: Terms: Net 30 Note: First and last month billing will be pro-rated if order starts mid-month. | Y31: Peterborough | Z31: Peterborough | AA31: 90.5 CJMB-FM | AB31: 727 Lansdowne St. W. | AC31: Peterborough, Ontario | AD31: K9J 1Z2 | AE31: 705-874-0905 | AF31: 705-748-6936 | AG31: 99 | AH31: 169 | AI31: 229 | AJ31: 5148 | AK31: 8788 | AL31: 11908
B32: Approved | Q32: MBC - BO 011.16. | S32: =IF(S24>0.01,S24/(P20)," ") -> 24.83333333 | Y32: Renfrew | Z32: Renfrew | AA32: 96.1 CHMY-FM | AB32: 321B Raglan St. S., Box 961 | AC32: Renfrew, Ontario | AD32: K7V 4H4 | AE32: 613-432-myfm (6936) | AF32: 613-432-1086 | AG32: 129 | AH32: 169 | AI32: 229 | AJ32: 6708 | AK32: 8788 | AL32: 11908
Y33: St. Thomas | Z33: St. Thomas | AA33: 94.1 CKZM-FM | AB33: 30 Talbot St., Lower Level, Unit 2 | AC33: St. Thomas, Ontario | AD33: N5P 4E2 | AE33: 519-633-myfm (6936) | AF33: 519-637-8410 | AG33: 119 | AH33: 169 | AI33: 229 | AJ33: 6188 | AK33: 8788 | AL33: 11908
Y34: Strathroy | Z34: Strathroy | AA34: 105.7 CJMI-FM | AB34: 85 Zimmerman St. S., Unit 1 | AC34: Strathroy, Ontario | AD34: N7G 0A3 | AE34: 519-246-myfm (6936) | AF34: 519-245-6670 | AG34: 109 | AH34: 169 | AI34: 229 | AJ34: 5668 | AK34: 8788 | AL34: 11908
Z39: Bonus Spots
Z40: =IF(O20=$Z$3,P20,0) -> 0
Z41: =IF(O22=$Z$3,#REF!,0) -> 
Z42: =IF(#REF!=$Z$3,#REF!,0) -> 
Z43: =IF(#REF!=$Z$3,#REF!,0) -> 
Z44: =IF(#REF!=$Z$3,#REF!,0) -> 
Z45: =IF(#REF!=$Z$3,#REF!,0) -> 
Z46: =IF(#REF!=$Z$3,#REF!,0) -> 
Z47: =IF(#REF!=$Z$3,#REF!,0) -> 
Z48: =IF(#REF!=$Z$3,#REF!,0) -> 
Z49: =IF(O23=$Z$3,P23,0) -> 0
Z50: =SUM(Z40:Z49) ->  | AA50: Total
